[Event "December 12 Late 2023"]
[Site "https://www.chess.com"]
[Date "2023.12.12"]
[Round "3"]
[White "Kozak, Antoni"]
[Black "Kovalevsky, Stanislav"]
[Result "1-0"]
[Board "58"]
[TimeControl "180+1"]
[WhiteFideId "21832030"]
[BlackFideId "13508598"]
[WhiteElo "2761"]
[BlackElo "2489"]
[WhiteTeam "POL"]
[BlackTeam "FID"]
[WhiteClock "0:00:19"]
[BlackClock "0:00:36"]

1. Nf3 {[%clk 0:01:32]}  c6 {[%clk 0:03:00]} 2. e4 {[%clk 0:01:25]}  d5 {[%clk 0:03:01]} 3. d3 {[%clk 0:01:25]}  dxe4 {[%clk 0:03:00]} 4. dxe4 {[%clk 0:01:26]}  Qxd1+ {[%clk 0:03:00]} 5. Kxd1 {[%clk 0:01:26]}  Bg4 {[%clk 0:03:01]} 6. Be2 {[%clk 0:01:23]}  Nd7 {[%clk 0:02:59]} 7. Ne1 {[%clk 0:01:23]}  Bxe2+ {[%clk 0:02:56]} 8. Kxe2 {[%clk 0:01:24]}  Ngf6 {[%clk 0:02:53]} 9. f3 {[%clk 0:01:24]}  e6 {[%clk 0:02:49]} 10. Nd3 {[%clk 0:01:20]}  O-O-O {[%clk 0:02:42]} 11. Be3 {[%clk 0:01:20]}  Kb8 {[%clk 0:02:41]} 12. Nd2 {[%clk 0:01:19]}  Ne8 {[%clk 0:02:29]} 13. Nc4 {[%clk 0:01:07]}  f6 {[%clk 0:02:22]} 14. Nf4 {[%clk 0:00:57]}  Nc7 {[%clk 0:02:20]} 15. Rhd1 {[%clk 0:00:53]}  Be7 {[%clk 0:01:52]} 16. a4 {[%clk 0:00:51]}  Nc5 {[%clk 0:01:46]} 17. b3 {[%clk 0:00:46]}  Rxd1 {[%clk 0:01:41]} 18. Rxd1 {[%clk 0:00:46]}  Rd8 {[%clk 0:01:42]} 19. Rxd8+ {[%clk 0:00:46]}  Bxd8 {[%clk 0:01:42]} 20. Bxc5 {[%clk 0:00:46]}  e5 {[%clk 0:01:41]} 21. Nd3 {[%clk 0:00:42]}  b5 {[%clk 0:01:41]} 22. axb5 {[%clk 0:00:40]}  cxb5 {[%clk 0:01:42]} 23. Nd6 {[%clk 0:00:39]}  Ne6 {[%clk 0:01:35]} 24. Nxb5 {[%clk 0:00:33]}  a6 {[%clk 0:01:35]} 25. Na3 {[%clk 0:00:32]}  Kb7 {[%clk 0:01:35]} 26. Nc4 {[%clk 0:00:30]}  Kc6 {[%clk 0:01:35]} 27. Be3 {[%clk 0:00:31]}  Kb5 {[%clk 0:01:34]} 28. Nd6+ {[%clk 0:00:29]}  Kc6 {[%clk 0:01:33]} 29. Nc4 {[%clk 0:00:29]}  Kb5 {[%clk 0:01:32]} 30. g4 {[%clk 0:00:29]}  a5 {[%clk 0:01:33]} 31. Na3+ {[%clk 0:00:26]}  Kc6 {[%clk 0:01:32]} 32. c4 {[%clk 0:00:26]}  Be7 {[%clk 0:01:31]} 33. Nb5 {[%clk 0:00:26]}  g6 {[%clk 0:01:28]} 34. h3 {[%clk 0:00:25]}  Bf8 {[%clk 0:01:25]} 35. Na7+ {[%clk 0:00:24]}  Kb7 {[%clk 0:01:24]} 36. Nb5 {[%clk 0:00:25]}  Kc6 {[%clk 0:01:25]} 37. h4 {[%clk 0:00:25]}  Kb7 {[%clk 0:01:25]} 38. Nc3 {[%clk 0:00:24]}  Kc6 {[%clk 0:01:24]} 39. Na4 {[%clk 0:00:25]}  Ba3 {[%clk 0:01:23]} 40. Ndc5 {[%clk 0:00:25]}  Bxc5 {[%clk 0:01:22]} 41. Bxc5 {[%clk 0:00:25]}  Nxc5 {[%clk 0:01:23]} 42. Nxc5 {[%clk 0:00:26]}  Kxc5 {[%clk 0:01:23]} 43. g5 {[%clk 0:00:14]}  fxg5 {[%clk 0:01:20]} 44. hxg5 {[%clk 0:00:15]}  Kb4 {[%clk 0:01:19]} 45. Kd3 {[%clk 0:00:14]}  Ka3 {[%clk 0:00:37]} 46. Kc3 {[%clk 0:00:14]}  a4 {[%clk 0:00:37]} 47. b4 {[%clk 0:00:13]}  Ka2 {[%clk 0:00:37]} 48. b5 {[%clk 0:00:13]}  a3 {[%clk 0:00:38]} 49. b6 {[%clk 0:00:14]}  h6 {[%clk 0:00:38]} 50. b7 {[%clk 0:00:15]}  hxg5 {[%clk 0:00:38]} 51. b8=Q {[%clk 0:00:16]}  g4 {[%clk 0:00:39]} 52. Qb3+ {[%clk 0:00:16]}  Ka1 {[%clk 0:00:39]} 53. Kc2 {[%clk 0:00:16]}  a2 {[%clk 0:00:38]} 54. Qb4 {[%clk 0:00:17]}  g3 {[%clk 0:00:36]} 55. Qb5 {[%clk 0:00:18]}  g2 {[%clk 0:00:37]} 56. Qb6 {[%clk 0:00:19]}  g5 {[%clk 0:00:36]} 57. Qg1# {[%clk 0:00:19]} 1-0

[Event "December 12 Late 2023"]
[Site "https://www.chess.com"]
[Date "2023.12.12"]
[Round "3"]
[White "ChessSG1"]
[Black "Fier, Alexandr"]
[Result "0-1"]
[Board "59"]
[TimeControl "180+1"]
[BlackFideId "2107139"]
[WhiteElo "2488"]
[BlackElo "2726"]
[BlackTeam "BRA"]
[WhiteClock "0:00:01"]
[BlackClock "0:01:42"]

1. Nf3 {[%clk 0:03:00]}  Nf6 {[%clk 0:02:58]} 2. c4 {[%clk 0:03:01]}  g6 {[%clk 0:02:59]} 3. g3 {[%clk 0:03:01]}  Bg7 {[%clk 0:03:00]} 4. Bg2 {[%clk 0:03:01]}  O-O {[%clk 0:03:00]} 5. O-O {[%clk 0:03:02]}  d6 {[%clk 0:03:00]} 6. Nc3 {[%clk 0:03:01]}  e5 {[%clk 0:03:00]} 7. d4 {[%clk 0:02:54]}  e4 {[%clk 0:02:59]} 8. Ng5 {[%clk 0:02:49]}  Nc6 {[%clk 0:02:51]} 9. d5 {[%clk 0:02:42]}  Ne5 {[%clk 0:02:51]} 10. Ngxe4 {[%clk 0:02:30]}  Nxe4 {[%clk 0:02:51]} 11. Nxe4 {[%clk 0:02:31]}  Nxc4 {[%clk 0:02:51]} 12. Qc2 {[%clk 0:02:25]}  Ne5 {[%clk 0:02:50]} 13. Bg5 {[%clk 0:02:24]}  f6 {[%clk 0:02:49]} 14. Bd2 {[%clk 0:02:21]}  Bf5 {[%clk 0:02:48]} 15. Qb3 {[%clk 0:02:20]}  Nd7 {[%clk 0:02:48]} 16. Nc3 {[%clk 0:02:06]}  Nc5 {[%clk 0:02:46]} 17. Qd1 {[%clk 0:02:06]}  Re8 {[%clk 0:02:46]} 18. Rc1 {[%clk 0:02:01]}  a5 {[%clk 0:02:46]} 19. b3 {[%clk 0:01:59]}  Qd7 {[%clk 0:02:45]} 20. Be3 {[%clk 0:01:49]}  Rxe3 {[%clk 0:02:43]} 21. fxe3 {[%clk 0:01:49]}  Re8 {[%clk 0:02:44]} 22. e4 {[%clk 0:01:43]}  Bg4 {[%clk 0:02:43]} 23. Qd2 {[%clk 0:01:26]}  b6 {[%clk 0:02:43]} 24. Bf3 {[%clk 0:01:11]}  Bh3 {[%clk 0:02:43]} 25. Bg2 {[%clk 0:01:11]}  h5 {[%clk 0:02:36]} 26. Qf4 {[%clk 0:01:05]}  Kh7 {[%clk 0:02:29]} 27. Qh4 {[%clk 0:00:55]}  Bg4 {[%clk 0:02:28]} 28. Bf3 {[%clk 0:00:45]}  Bh3 {[%clk 0:02:09]} 29. Bg2 {[%clk 0:00:22]}  Bxg2 {[%clk 0:02:09]} 30. Kxg2 {[%clk 0:00:22]}  Re5 {[%clk 0:02:08]} 31. Rcd1 {[%clk 0:00:12]}  Qe7 {[%clk 0:01:58]} 32. Rd4 {[%clk 0:00:11]}  f5 {[%clk 0:01:43]} 33. Qxe7 {[%clk 0:00:11]}  Rxe7 {[%clk 0:01:43]} 34. Rdd1 {[%clk 0:00:11]}  Bxc3 {[%clk 0:01:43]} 35. exf5 {[%clk 0:00:09]}  Rxe2+ {[%clk 0:01:44]} 36. Kf3 {[%clk 0:00:06]}  Rxh2 {[%clk 0:01:44]} 37. fxg6+ {[%clk 0:00:07]}  Kxg6 {[%clk 0:01:44]} 38. Ke3 {[%clk 0:00:07]}  Be5 {[%clk 0:01:44]} 39. Rf3 {[%clk 0:00:03]}  Rxa2 {[%clk 0:01:44]} 40. Rdf1 {[%clk 0:00:03]}  Rb2 {[%clk 0:01:43]} 41. Rf7 {[%clk 0:00:03]}  Rxb3+ {[%clk 0:01:43]} 42. Kd2 {[%clk 0:00:01]}  Rb2+ {[%clk 0:01:43]} 43. Kc1 {[%clk 0:00:01]}  Nb3+ {[%clk 0:01:41]} 44. Kd1 {[%clk 0:00:02]}  Rd2+ {[%clk 0:01:41]} 45. Ke1 {[%clk 0:00:01]}  Bxg3+ {[%clk 0:01:42]} 0-1

[Event "December 12 Late 2023"]
[Site "https://www.chess.com"]
[Date "2023.12.12"]
[Round "3"]
[White "Gasparyan, David"]
[Black "Wafa, Hamed"]
[Result "1-0"]
[Board "60"]
[TimeControl "180+1"]
[WhiteFideId "13311980"]
[BlackFideId "10628452"]
[WhiteElo "2487"]
[BlackElo "2692"]
[WhiteTeam "USA"]
[BlackTeam "EGY"]
[WhiteClock "0:01:48"]
[BlackClock "0:00:13"]

1. Nf3 {[%clk 0:03:00]}  Nf6 {[%clk 0:02:51]} 2. g3 {[%clk 0:03:01]}  g6 {[%clk 0:02:50]} 3. Bg2 {[%clk 0:03:01]}  Bg7 {[%clk 0:02:50]} 4. O-O {[%clk 0:03:02]}  O-O {[%clk 0:02:51]} 5. c4 {[%clk 0:03:02]}  d6 {[%clk 0:02:51]} 6. Nc3 {[%clk 0:03:01]}  c5 {[%clk 0:02:47]} 7. d4 {[%clk 0:02:59]}  cxd4 {[%clk 0:02:48]} 8. Nxd4 {[%clk 0:02:58]}  Nc6 {[%clk 0:02:49]} 9. Nxc6 {[%clk 0:02:50]}  bxc6 {[%clk 0:02:50]} 10. Qa4 {[%clk 0:02:47]}  Bd7 {[%clk 0:02:43]} 11. Rd1 {[%clk 0:02:39]}  Qc7 {[%clk 0:02:34]} 12. Bf4 {[%clk 0:02:37]}  c5 {[%clk 0:02:06]} 13. Qc2 {[%clk 0:02:34]}  Rab8 {[%clk 0:02:00]} 14. b3 {[%clk 0:02:30]}  Bc6 {[%clk 0:01:57]} 15. e4 {[%clk 0:02:27]}  e5 {[%clk 0:01:26]} 16. Bg5 {[%clk 0:02:21]}  Nd7 {[%clk 0:01:21]} 17. Be7 {[%clk 0:02:20]}  Qa5 {[%clk 0:00:53]} 18. Bxd6 {[%clk 0:02:17]}  Nf6 {[%clk 0:00:48]} 19. Bxb8 {[%clk 0:02:04]}  Rxb8 {[%clk 0:00:48]} 20. Rd6 {[%clk 0:02:04]}  Be8 {[%clk 0:00:45]} 21. Rad1 {[%clk 0:02:03]}  Nh5 {[%clk 0:00:26]} 22. Qd3 {[%clk 0:01:56]}  Bf6 {[%clk 0:00:20]} 23. Nd5 {[%clk 0:01:54]}  Bg5 {[%clk 0:00:17]} 24. h4 {[%clk 0:01:53]}  Bh6 {[%clk 0:00:15]} 25. Ne7+ {[%clk 0:01:50]}  Kf8 {[%clk 0:00:15]} 26. Nc6 {[%clk 0:01:48]}  Bxc6 {[%clk 0:00:14]} 27. Rxc6 {[%clk 0:01:49]}  Ng7 {[%clk 0:00:13]} 28. Qd6+ {[%clk 0:01:48]} 1-0

[Event "December 12 Late 2023"]
[Site "https://www.chess.com"]
[Date "2023.12.12"]
[Round "3"]
[White "Wu, Derek"]
[Black "Rangel, Daniel"]
[Result "1-0"]
[Board "61"]
[TimeControl "180+1"]
[WhiteFideId "30914558"]
[BlackFideId "2124475"]
[WhiteElo "2684"]
[BlackElo "2487"]
[WhiteTeam "USA"]
[BlackTeam "BRA"]
[WhiteClock "0:00:20"]
[BlackClock "0:00:05"]

1. e4 {[%clk 0:03:00]}  c5 {[%clk 0:02:57]} 2. Nf3 {[%clk 0:03:00]}  g6 {[%clk 0:02:55]} 3. d4 {[%clk 0:02:59]}  cxd4 {[%clk 0:02:53]} 4. Qxd4 {[%clk 0:02:59]}  Nf6 {[%clk 0:02:50]} 5. Nc3 {[%clk 0:02:58]}  Nc6 {[%clk 0:02:49]} 6. Qa4 {[%clk 0:02:58]}  d6 {[%clk 0:02:49]} 7. e5 {[%clk 0:02:58]}  dxe5 {[%clk 0:02:50]} 8. Nxe5 {[%clk 0:02:59]}  Bd7 {[%clk 0:02:51]} 9. Nxd7 {[%clk 0:02:58]}  Nxd7 {[%clk 0:02:52]} 10. Bb5 {[%clk 0:02:47]}  Bg7 {[%clk 0:02:50]} 11. O-O {[%clk 0:02:44]}  O-O {[%clk 0:02:49]} 12. Be3 {[%clk 0:02:30]}  Nb6 {[%clk 0:02:46]} 13. Qa3 {[%clk 0:02:13]}  Ne5 {[%clk 0:02:37]} 14. Rad1 {[%clk 0:02:09]}  Qc7 {[%clk 0:02:21]} 15. Qb3 {[%clk 0:02:03]}  e6 {[%clk 0:02:10]} 16. h3 {[%clk 0:01:57]}  Nec4 {[%clk 0:01:57]} 17. Bd4 {[%clk 0:01:39]}  Bxd4 {[%clk 0:01:48]} 18. Rxd4 {[%clk 0:01:40]}  Rad8 {[%clk 0:01:46]} 19. Rxc4 {[%clk 0:01:39]}  Nxc4 {[%clk 0:01:45]} 20. Bxc4 {[%clk 0:01:39]}  a6 {[%clk 0:01:38]} 21. a4 {[%clk 0:01:38]}  Rd4 {[%clk 0:01:27]} 22. Bd3 {[%clk 0:01:38]}  Rfd8 {[%clk 0:01:27]} 23. Ne2 {[%clk 0:01:35]}  R4d6 {[%clk 0:01:19]} 24. Qc3 {[%clk 0:01:26]}  Qxc3 {[%clk 0:01:12]} 25. Nxc3 {[%clk 0:01:27]}  f5 {[%clk 0:01:07]} 26. f4 {[%clk 0:01:27]}  Kf7 {[%clk 0:01:06]} 27. Kf2 {[%clk 0:01:26]}  Kf6 {[%clk 0:01:06]} 28. Re1 {[%clk 0:01:25]}  Rc8 {[%clk 0:01:03]} 29. Kf3 {[%clk 0:01:11]}  h6 {[%clk 0:00:58]} 30. Nd1 {[%clk 0:01:02]}  Rd4 {[%clk 0:00:53]} 31. b3 {[%clk 0:01:02]}  g5 {[%clk 0:00:52]} 32. g3 {[%clk 0:01:02]}  Rc5 {[%clk 0:00:44]} 33. Bc4 {[%clk 0:00:58]}  e5 {[%clk 0:00:40]} 34. fxe5+ {[%clk 0:00:50]}  Rxe5 {[%clk 0:00:41]} 35. Rxe5 {[%clk 0:00:46]}  Kxe5 {[%clk 0:00:42]} 36. Bd3 {[%clk 0:00:44]}  f4 {[%clk 0:00:28]} 37. Nf2 {[%clk 0:00:44]}  fxg3 {[%clk 0:00:26]} 38. Ng4+ {[%clk 0:00:44]}  Kd5 {[%clk 0:00:08]} 39. Kxg3 {[%clk 0:00:44]}  h5 {[%clk 0:00:07]} 40. Nf6+ {[%clk 0:00:44]}  Ke5 {[%clk 0:00:08]} 41. Nxh5 {[%clk 0:00:44]}  Rb4 {[%clk 0:00:06]} 42. Ng7 {[%clk 0:00:41]}  b5 {[%clk 0:00:05]} 43. axb5 {[%clk 0:00:40]}  axb5 {[%clk 0:00:06]} 44. Nf5 {[%clk 0:00:39]}  Rf4 {[%clk 0:00:05]} 45. Ne3 {[%clk 0:00:39]}  b4 {[%clk 0:00:05]} 46. Ng2 {[%clk 0:00:35]}  Rd4 {[%clk 0:00:04]} 47. Kf3 {[%clk 0:00:35]}  Kf6 {[%clk 0:00:03]} 48. Ke3 {[%clk 0:00:33]}  Rd6 {[%clk 0:00:02]} 49. Ke4 {[%clk 0:00:19]}  Rd8 {[%clk 0:00:03]} 50. Ne3 {[%clk 0:00:19]}  Rh8 {[%clk 0:00:03]} 51. Bf1 {[%clk 0:00:17]}  Ke6 {[%clk 0:00:03]} 52. Kd4 {[%clk 0:00:15]}  Rh4+ {[%clk 0:00:03]} 53. Kc5 {[%clk 0:00:14]}  Ke5 {[%clk 0:00:04]} 54. Nc4+ {[%clk 0:00:15]}  Ke4 {[%clk 0:00:04]} 55. Kxb4 {[%clk 0:00:15]}  Kf3 {[%clk 0:00:04]} 56. Kc5 {[%clk 0:00:15]}  Kf2 {[%clk 0:00:04]} 57. Nd2 {[%clk 0:00:13]}  Ke1 {[%clk 0:00:04]} 58. Nf3+ {[%clk 0:00:14]}  Kxf1 {[%clk 0:00:04]} 59. Nxh4 {[%clk 0:00:14]}  gxh4 {[%clk 0:00:04]} 60. b4 {[%clk 0:00:15]}  Kg2 {[%clk 0:00:05]} 61. b5 {[%clk 0:00:16]}  Kxh3 {[%clk 0:00:05]} 62. b6 {[%clk 0:00:17]}  Kg2 {[%clk 0:00:04]} 63. b7 {[%clk 0:00:17]}  h3 {[%clk 0:00:05]} 64. b8=Q {[%clk 0:00:18]}  h2 {[%clk 0:00:06]} 65. Qxh2+ {[%clk 0:00:18]}  Kxh2 {[%clk 0:00:06]} 66. c4 {[%clk 0:00:18]}  Kg3 {[%clk 0:00:07]} 67. Kd6 {[%clk 0:00:18]}  Kf4 {[%clk 0:00:08]} 68. c5 {[%clk 0:00:19]}  Kf5 {[%clk 0:00:05]} 69. c6 {[%clk 0:00:20]} 1-0

[Event "December 12 Late 2023"]
[Site "https://www.chess.com"]
[Date "2023.12.12"]
[Round "3"]
[White "Cervantes Landeiro, Thalia"]
[Black "Nagare Kaivalya Sandip"]
[Result "1-0"]
[Board "62"]
[TimeControl "180+1"]
[WhiteFideId "3520498"]
[BlackFideId "25957929"]
[WhiteElo "2481"]
[BlackElo "2677"]
[WhiteTeam "USA"]
[BlackTeam "IND"]
[WhiteClock "0:00:06"]
[BlackClock "0:00:06"]

1. d4 {[%clk 0:03:00]}  Nf6 {[%clk 0:02:57]} 2. c4 {[%clk 0:03:01]}  g6 {[%clk 0:02:57]} 3. Nc3 {[%clk 0:03:01]}  Bg7 {[%clk 0:02:57]} 4. e4 {[%clk 0:03:01]}  d6 {[%clk 0:02:58]} 5. Nf3 {[%clk 0:03:01]}  O-O {[%clk 0:02:57]} 6. Be2 {[%clk 0:03:02]}  e5 {[%clk 0:02:57]} 7. O-O {[%clk 0:03:00]}  Nc6 {[%clk 0:02:57]} 8. d5 {[%clk 0:03:00]}  Ne7 {[%clk 0:02:58]} 9. b4 {[%clk 0:02:59]}  a5 {[%clk 0:02:56]} 10. bxa5 {[%clk 0:02:59]}  Rxa5 {[%clk 0:02:55]} 11. a4 {[%clk 0:03:00]}  c5 {[%clk 0:02:49]} 12. Bd2 {[%clk 0:02:54]}  Ra6 {[%clk 0:02:45]} 13. Re1 {[%clk 0:02:51]}  Nh5 {[%clk 0:02:43]} 14. Ra3 {[%clk 0:02:49]}  Nf4 {[%clk 0:02:41]} 15. Bf1 {[%clk 0:02:41]}  f5 {[%clk 0:02:40]} 16. Bxf4 {[%clk 0:02:37]}  exf4 {[%clk 0:02:41]} 17. e5 {[%clk 0:02:38]}  h6 {[%clk 0:02:34]} 18. Nb5 {[%clk 0:02:32]}  dxe5 {[%clk 0:02:30]} 19. Nxe5 {[%clk 0:02:32]}  g5 {[%clk 0:02:27]} 20. d6 {[%clk 0:02:21]}  Nc6 {[%clk 0:02:24]} 21. Qd5+ {[%clk 0:02:13]}  Kh7 {[%clk 0:02:23]} 22. Nd3 {[%clk 0:01:54]}  Nd4 {[%clk 0:02:19]} 23. Nxc5 {[%clk 0:01:49]}  Nxb5 {[%clk 0:01:49]} 24. cxb5 {[%clk 0:01:48]}  Rxd6 {[%clk 0:01:49]} 25. Qf3 {[%clk 0:01:36]}  Rd2 {[%clk 0:01:46]} 26. Rd3 {[%clk 0:01:30]}  Qa5 {[%clk 0:01:44]} 27. Rxd2 {[%clk 0:01:17]}  Qxd2 {[%clk 0:01:43]} 28. Rd1 {[%clk 0:01:08]}  Qc2 {[%clk 0:01:32]} 29. Nb3 {[%clk 0:00:44]}  Re8 {[%clk 0:01:11]} 30. Rc1 {[%clk 0:00:31]}  Qb2 {[%clk 0:01:08]} 31. h3 {[%clk 0:00:18]}  Be6 {[%clk 0:01:06]} 32. Re1 {[%clk 0:00:10]}  Re7 {[%clk 0:00:20]} 33. Nc5 {[%clk 0:00:08]}  Qb4 {[%clk 0:00:18]} 34. Rxe6 {[%clk 0:00:08]}  Qxc5 {[%clk 0:00:18]} 35. Rxe7 {[%clk 0:00:08]}  Qxe7 {[%clk 0:00:19]} 36. Qd5 {[%clk 0:00:08]}  Qf6 {[%clk 0:00:17]} 37. a5 {[%clk 0:00:08]}  g4 {[%clk 0:00:17]} 38. hxg4 {[%clk 0:00:08]}  fxg4 {[%clk 0:00:16]} 39. Bd3+ {[%clk 0:00:08]}  Kh8 {[%clk 0:00:16]} 40. Qe4 {[%clk 0:00:08]}  Kg8 {[%clk 0:00:15]} 41. Qe8+ {[%clk 0:00:07]}  Bf8 {[%clk 0:00:15]} 42. Bc4+ {[%clk 0:00:06]}  Kg7 {[%clk 0:00:15]} 43. Qd7+ {[%clk 0:00:07]}  Kh8 {[%clk 0:00:14]} 44. Qxb7 {[%clk 0:00:06]}  f3 {[%clk 0:00:13]} 45. Qe4 {[%clk 0:00:04]}  Qa1+ {[%clk 0:00:12]} 46. Kh2 {[%clk 0:00:04]}  Bd6+ {[%clk 0:00:11]} 47. g3 {[%clk 0:00:04]}  Qf6 {[%clk 0:00:11]} 48. Bd3 {[%clk 0:00:03]}  Kg7 {[%clk 0:00:10]} 49. Qb7+ {[%clk 0:00:01]}  Kf8 {[%clk 0:00:09]} 50. Qe4 {[%clk 0:00:02]}  Qh4+ {[%clk 0:00:08]} 51. Kg1 {[%clk 0:00:01]}  Bxg3 {[%clk 0:00:09]} 52. Qf5+ {[%clk 0:00:02]}  Ke7 {[%clk 0:00:08]} 53. Qe4+ {[%clk 0:00:02]}  Kf6 {[%clk 0:00:07]} 54. Qd4+ {[%clk 0:00:02]}  Be5 {[%clk 0:00:07]} 55. Qd8+ {[%clk 0:00:03]}  Ke6 {[%clk 0:00:06]} 56. Qxh4 {[%clk 0:00:03]}  g3 {[%clk 0:00:06]} 57. Qg4+ {[%clk 0:00:04]}  Kd5 {[%clk 0:00:06]} 58. fxg3 {[%clk 0:00:05]}  Bd4+ {[%clk 0:00:06]} 59. Kf1 {[%clk 0:00:05]}  f2 {[%clk 0:00:06]} 60. Qe4+ {[%clk 0:00:05]}  Kc5 {[%clk 0:00:07]} 61. Qf5+ {[%clk 0:00:05]}  Kb4 {[%clk 0:00:07]} 62. Qd5 {[%clk 0:00:05]}  Kc3 {[%clk 0:00:06]} 63. Qc4+ {[%clk 0:00:06]} 1-0

[Event "December 12 Late 2023"]
[Site "https://www.chess.com"]
[Date "2023.12.12"]
[Round "3"]
[White "Solon, Nathan"]
[Black "Gutierrez Olivares, Daniel"]
[Result "1-0"]
[Board "64"]
[TimeControl "180+1"]
[WhiteFideId "2017229"]
[BlackFideId "2264005"]
[WhiteElo "2652"]
[BlackElo "2477"]
[WhiteTeam "USA"]
[BlackTeam "ESP"]
[WhiteClock "0:00:03"]
[BlackClock "0:00:00"]

1. d4 {[%clk 0:03:00]}  e6 {[%clk 0:02:59]} 2. Bf4 {[%clk 0:03:00]}  Nf6 {[%clk 0:02:58]} 3. e3 {[%clk 0:02:59]}  b6 {[%clk 0:02:56]} 4. Qf3 {[%clk 0:02:59]}  Nc6 {[%clk 0:02:53]} 5. Nc3 {[%clk 0:02:56]}  Bb7 {[%clk 0:02:53]} 6. O-O-O {[%clk 0:02:53]}  Qc8 {[%clk 0:02:51]} 7. e4 {[%clk 0:02:50]}  a6 {[%clk 0:02:46]} 8. d5 {[%clk 0:02:43]}  Ne7 {[%clk 0:02:45]} 9. Nh3 {[%clk 0:02:35]}  Ng6 {[%clk 0:02:43]} 10. Bg5 {[%clk 0:02:31]}  Be7 {[%clk 0:02:40]} 11. Qe2 {[%clk 0:02:15]}  h6 {[%clk 0:02:23]} 12. Be3 {[%clk 0:02:10]}  Bb4 {[%clk 0:02:15]} 13. Qc4 {[%clk 0:02:03]}  a5 {[%clk 0:02:03]} 14. Nb5 {[%clk 0:01:55]}  c6 {[%clk 0:01:26]} 15. dxc6 {[%clk 0:01:55]}  Bxc6 {[%clk 0:01:20]} 16. f3 {[%clk 0:01:46]}  O-O {[%clk 0:01:18]} 17. a3 {[%clk 0:01:23]}  Be7 {[%clk 0:01:07]} 18. Nd6 {[%clk 0:00:55]}  Qb8 {[%clk 0:01:04]} 19. Qd4 {[%clk 0:00:53]}  Ne8 {[%clk 0:00:56]} 20. Nxe8 {[%clk 0:00:52]}  Rxe8 {[%clk 0:00:57]} 21. Qxb6 {[%clk 0:00:38]}  Qc8 {[%clk 0:00:55]} 22. Nf4 {[%clk 0:00:33]}  Ba4 {[%clk 0:00:49]} 23. Bd3 {[%clk 0:00:09]}  Ne5 {[%clk 0:00:49]} 24. Qd4 {[%clk 0:00:08]}  Nxd3+ {[%clk 0:00:39]} 25. Qxd3 {[%clk 0:00:09]}  Qc7 {[%clk 0:00:33]} 26. Nh5 {[%clk 0:00:09]}  Rec8 {[%clk 0:00:33]} 27. Rd2 {[%clk 0:00:09]}  Rab8 {[%clk 0:00:32]} 28. Qd4 {[%clk 0:00:09]}  f6 {[%clk 0:00:31]} 29. Qxa4 {[%clk 0:00:09]}  Qb7 {[%clk 0:00:30]} 30. Bd4 {[%clk 0:00:07]}  e5 {[%clk 0:00:25]} 31. Bc3 {[%clk 0:00:07]}  Rxc3 {[%clk 0:00:25]} 32. b3 {[%clk 0:00:05]}  Rbc8 {[%clk 0:00:21]} 33. Kb1 {[%clk 0:00:06]}  Kh7 {[%clk 0:00:17]} 34. Qxd7 {[%clk 0:00:05]}  R8c7 {[%clk 0:00:17]} 35. Qd5 {[%clk 0:00:05]}  Qc8 {[%clk 0:00:16]} 36. Rc1 {[%clk 0:00:04]}  a4 {[%clk 0:00:16]} 37. Qf7 {[%clk 0:00:02]}  Bxa3 {[%clk 0:00:14]} 38. Nxf6+ {[%clk 0:00:02]}  Kh8 {[%clk 0:00:14]} 39. Qg6 {[%clk 0:00:01]}  gxf6 {[%clk 0:00:14]} 40. Qxh6+ {[%clk 0:00:01]}  Kg8 {[%clk 0:00:14]} 41. Qg6+ {[%clk 0:00:01]}  Rg7 {[%clk 0:00:15]} 42. Qxf6 {[%clk 0:00:02]}  axb3 {[%clk 0:00:15]} 43. Rd8+ {[%clk 0:00:02]}  Qxd8 {[%clk 0:00:12]} 44. Qxd8+ {[%clk 0:00:03]}  Kh7 {[%clk 0:00:12]} 45. Qh4+ {[%clk 0:00:04]}  Kg8 {[%clk 0:00:12]} 46. Qd8+ {[%clk 0:00:04]}  Kf7 {[%clk 0:00:12]} 47. Qd5+ {[%clk 0:00:03]}  Kf6 {[%clk 0:00:12]} 48. f4 {[%clk 0:00:01]}  Re7 {[%clk 0:00:09]} 49. fxe5+ {[%clk 0:00:01]}  Rxe5 {[%clk 0:00:10]} 50. Qd4 {[%clk 0:00:02]}  bxc2+ {[%clk 0:00:09]} 51. Rxc2 {[%clk 0:00:02]}  Rb3+ {[%clk 0:00:09]} 52. Ka2 {[%clk 0:00:02]}  Bd6 {[%clk 0:00:10]} 53. Kxb3 {[%clk 0:00:02]}  Ke7 {[%clk 0:00:10]} 54. Qxe5+ {[%clk 0:00:02]}  Bxe5 {[%clk 0:00:11]} 55. h3 {[%clk 0:00:03]}  Ke6 {[%clk 0:00:11]} 56. Rf2 {[%clk 0:00:03]}  Bf4 {[%clk 0:00:00]} 57. Rxf4 {[%clk 0:00:03]} 1-0